bitfinex/quotes_ETHUSD_20220109
["timestamp","ask_amount","ask_price","bid_price","bid_amount"]
[1641724008690,1e-08,3094.0,3093.9,22.18691189]
[1641724008892,1e-08,3094.0,3093.9,1.1719]
[1641724009591,1e-08,3094.0,3093.9,3.92677753]
[1641724012333,1e-08,3094.0,3093.9,3.62677753]
[1641724012535,1e-08,3094.0,3093.9,22.48677753]
[1641724012834,1e-08,3094.0,3093.9,3.62677753]
[1641724013239,1e-08,3094.0,3093.9,22.48677753]
[1641724014634,1e-08,3094.0,3093.9,22.78677753]
[1641724019145,1e-08,3094.0,3093.9,2.86177753]
[1641724019542,1e-08,3094.0,3093.9,2.26977753]
[1641724020143,1e-08,3094.0,3093.4,1.23316766]
[1641724020144,0.8085249,3093.8,3093.6,1.06936657]
[1641724023690,0.00511581,3093.9,3093.6,1.06936657]
[1641724024089,0.00454739,3093.8,3093.6,1.06936657]
[1641724024495,0.00397897,3093.7,3093.6,2.23656657]
[1641724025892,0.00397897,3093.7,3093.6,2.17156657]
[1641724030590,0.00397897,3093.7,3093.6,3.40802006]
[1641724031593,0.00397897,3093.7,3093.6,2.17156657]
[1641724031790,0.00397897,3093.7,3093.6,9.02156657]
[1641724032190,0.00397897,3093.7,3093.6,9.62156657]
[1641724034256,0.00397897,3093.7,3093.6,28.48156657]
[1641724034453,0.00397897,3093.7,3093.6,29.94656657]
[1641724034951,0.00397897,3093.7,3093.6,34.07875292]
[1641724035753,0.00397897,3093.7,3093.6,36.55281312]
[1641724035953,6.16,3094.5,3094.1,1.1508158]
[1641724035954,4.51118881,3094.5,3094.1,1.1508158]
[1641724036154,4.51118881,3094.5,3094.1,3.3629358]
[1641724036452,4.51118881,3094.5,3094.1,3.3780158]
[1641724036655,6.18778036,3094.9,3094.5,2.07458442]
[1641724036857,6.18778036,3094.9,3094.6,3.3411753]
[1641724037055,0.00568423,3094.7,3094.6,3.6411753]
[1641724037892,0.00568423,3094.7,3094.6,13.6411753]
[1641724038092,0.00568423,3094.7,3094.6,11.08449414]
[1641724038694,0.00568423,3094.7,3094.6,1.08449414]
[1641724039294,0.00568423,3094.7,3094.5,2.07458442]
[1641724039695,9.55511581,3094.6,3094.5,2.07458442]
[1641724039897,10.36353581,3094.6,3094.5,2.07458442]
[1641724040096,13.84416401,3094.6,3094.5,2.07458442]
[1641724040696,0.00511581,3094.6,3094.5,2.07458442]
[1641724042444,0.00511581,3094.6,3094.5,0.61958442]
[1641724043444,1.16265505,3094.6,3094.5,0.55458442]
[1641724043844,0.00511581,3094.6,3094.5,0.55458442]
[1641724044648,0.00511581,3094.6,3094.5,13.20458442]
[1641724044846,0.00511581,3094.6,3094.5,0.55458442]
[1641724045796,0.00511581,3094.6,3094.5,5.75458442]
[1641724046096,0.00511581,3094.6,3094.5,8.97914667]
[1641724046494,0.00511581,3094.6,3094.5,5.75458442]
[1641724046896,0.00511581,3094.6,3094.5,0.55458442]
[1641724047097,0.00511581,3094.6,3094.5,1.78901612]
[1641724047796,0.00511581,3094.6,3094.5,0.55458442]
[1641724048597,0.00511581,3094.6,3094.5,12.30458442]
[1641724049442,0.00511581,3094.6,3094.5,12.60458442]
[1641724049640,0.00511581,3094.6,3094.5,12.90458442]
[1641724051840,0.00511581,3094.6,3094.5,1.15458442]
[1641724052342,0.00511581,3094.6,3094.3,4.90593247]
[1641724052789,0.8081905,3095.0,3094.4,1.23329293]
[1641724052790,0.00454738,3094.5,3094.4,1.23329293]
[1641724053191,0.00454738,3094.5,3094.4,4.34773073]
[1641724053391,0.00454738,3094.5,3094.4,3.1794378]
[1641724053591,0.00454738,3094.5,3094.4,10.3294378]
[1641724054194,0.00454738,3094.5,3094.4,10.6294378]
[1641724054393,0.00454738,3094.5,3094.4,15.06071716]
[1641724054594,0.00454738,3094.5,3094.4,33.92071716]
[1641724054995,0.00454738,3094.5,3094.4,34.92071716]
[1641724055199,0.00454738,3094.5,3094.4,35.38571716]
[1641724055399,0.00454738,3094.5,3094.4,38.13989741]
[1641724055695,0.00454738,3094.5,3094.4,39.75598741]
[1641724055894,0.00454738,3094.5,3094.4,36.57654961]
[1641724056100,0.00454738,3094.5,3094.4,12.21001788]
[1641724056396,0.00454738,3094.5,3094.4,31.07001788]
[1641724056841,0.00454738,3094.5,3094.4,25.29527025]
[1641724057043,0.00454738,3094.5,3094.4,29.42652249]
[1641724060496,0.00454738,3094.5,3094.4,26.21043249]
[1641724062294,0.00454738,3094.5,3094.4,26.81043249]
[1641724063794,0.00454738,3094.5,3094.4,19.925]
[1641724064436,0.00454738,3094.5,3094.4,26.8105194]
[1641724066641,0.00454738,3094.5,3094.4,26.2105194]
[1641724067789,0.00454738,3094.5,3094.4,26.5105194]
[1641724067989,0.71269238,3095.1,3094.5,14.65]
[1641724068193,0.71269238,3095.1,3095.0,1.10562451]
[1641724068990,0.71269238,3095.1,3095.0,3.85981335]
[1641724069990,0.71269238,3095.1,3095.0,2.75418884]
[1641724070796,0.71269238,3095.1,3094.8,2.75420458]
[1641724070992,0.71269238,3095.1,3094.8,4.07239602]
[1641724071194,0.00284212,3095.0,3094.8,4.07239602]
[1641724071550,0.0022737,3094.9,3094.8,4.07239602]
[1641724072338,0.0022737,3094.9,3094.8,2.75420458]
[1641724073939,0.0022737,3094.9,3094.8,4.06383131]
[1641724074342,0.0022737,3094.9,3094.8,8.91383131]
[1641724074940,0.0022737,3094.9,3094.8,4.06383131]
[1641724075140,0.0022737,3094.9,3094.8,2.75420458]
[1641724075395,0.0022737,3094.9,3094.6,9.37973178]
[1641724075396,16.6,3094.8,3094.6,4.13123178]
[1641724075592,24.02437162,3094.7,3094.6,4.13123178]
[1641724075792,27.19431685,3094.7,3094.6,4.13123178]
[1641724075995,28.00281115,3094.7,3094.6,4.07243178]
[1641724076593,1.61679,3094.6,3094.1,1.09667844]
[1641724076793,6.50832892,3094.7,3094.1,1.09667844]
[1641724076993,6.46353685,3094.7,3094.2,0.00170527]
[1641724077594,0.8084,3094.5,3094.2,0.00170527]
[1641724077793,1.6167342,3094.5,3094.2,0.00170527]
[1641724079445,5.10502914,3094.4,3094.2,0.00170527]
[1641724079645,14.19197468,3094.3,3094.2,0.00170527]
[1641724079845,14.19197468,3094.3,3094.1,0.00227369]
[1641724080044,15.00048018,3094.3,3094.1,0.00227369]
[1641724080246,3.41967651,3094.2,3094.1,0.00227369]
[1641724080445,0.80852,3094.2,3094.1,0.00227369]
[1641724080647,0.8085055,3094.3,3094.1,1.33053517]
[1641724080845,0.8085055,3094.3,3094.1,2.35066148]
[1641724081446,0.8082889,3094.5,3094.1,2.35066148]
[1641724081645,6.46353685,3094.7,3094.1,2.35066148]
[1641724081845,6.46353685,3094.7,3094.4,1.23566947]
[1641724083494,6.46353685,3094.7,3094.4,1.70066947]
[1641724083694,7.27177085,3094.7,3094.4,1.23566947]
[1641724084495,7.27177085,3094.7,3094.0,2.45599131]
[1641724084694,2.42519,3094.6,3094.0,2.45599131]
[1641724084895,0.8083536,3094.4,3094.1,0.00227369]
[1641724085094,0.8083536,3094.4,3094.2,1.31239251]
[1641724085297,6.4624,3094.3,3094.2,1.31239251]
[1641724085694,6.4624,3094.3,3094.2,2.54820724]
[1641724085895,6.4624,3094.3,3094.2,1.23581473]
[1641724086744,6.4624,3094.3,3094.2,3.99030812]
[1641724087746,6.4624,3094.3,3094.1,2.75464432]
[1641724088046,8.0792449,3094.3,3094.1,2.75464432]
[1641724088446,0.80843,3094.2,3094.1,2.75464432]
[1641724088946,0.80843,3094.2,3094.1,2.75691801]
[1641724089947,0.80843,3094.2,3094.1,1.30191801]
[1641724090798,8.0792449,3094.3,3094.1,1.23691801]
[1641724091198,8.0792449,3094.3,3094.2,0.00170527]
[1641724091398,8.0792449,3094.3,3094.2,1.23721917]
[1641724092100,8.0792449,3094.3,3094.2,0.00170527]
[1641724093302,6.4624,3094.3,3094.2,0.00170527]
[1641724094242,6.4624,3094.3,3094.2,1.2370348]
[1641724094842,6.4624,3094.3,3094.2,0.00170527]
[1641724096542,6.4624,3094.3,3094.2,1.64867786]
[1641724097146,6.4624,3094.3,3094.2,1.94867786]
[1641724098597,6.4624,3094.3,3094.2,1.64867786]
[1641724100599,6.4624,3094.3,3094.2,0.00170527]
[1641724103046,14.7624,3094.3,3094.2,0.00170527]
[1641724103445,6.4624,3094.3,3094.2,0.00170527]
[1641724104047,13.0124,3094.3,3094.2,0.00170527]
[1641724104849,6.4624,3094.3,3094.2,0.00170527]
[1641724105048,15.9624,3094.3,3094.2,0.00170527]
[1641724109049,6.4624,3094.3,3094.2,0.00170527]
[1641724109349,6.4624,3094.3,3094.0,3.5697382]
[1641724109853,6.4624,3094.3,3094.2,3.00573663]
[1641724111050,6.4624,3094.3,3094.2,4.40215513]
[1641724111251,6.4624,3094.3,3094.2,2.7543665]
[1641724112050,6.4624,3094.3,3094.2,4.11160634]
[1641724112250,6.4624,3094.3,3094.2,1.35723984]
[1641724112905,6.4624,3094.3,3094.2,5.75943981]
[1641724117546,4.80973227,3094.3,3094.2,4.11159815]
[1641724117751,4.80973227,3094.3,3094.2,4.30466574]
[1641724118150,4.80973227,3094.3,3094.2,1.64806759]
[1641724119149,4.80973227,3094.3,3094.2,1.58306759]
[1641724121504,4.80973227,3094.3,3094.2,2.18306759]
[1641724121714,1.94111938,3095.7,3094.6,0.8082638]
[1641724121903,1.94111938,3095.7,3094.7,1.27304]
[1641724122103,0.00341054,3094.8,3094.7,1.57304]
[1641724122304,0.00341054,3094.8,3094.7,21.48304]
[1641724122503,0.00341054,3094.8,3094.7,2.78514]
[1641724122703,0.00341054,3094.8,3094.7,3.80610704]
[1641724122904,0.00341054,3094.8,3094.7,42.36610704]
[1641724123303,0.00341054,3094.8,3094.7,23.45610704]
[1641724123703,0.01,3095.5,3094.8,12.45]
[1641724123905,0.02778036,3095.4,3095.0,0.80798]
[1641724124147,0.02778036,3095.4,3095.1,3.67343233]
[1641724124148,0.0022737,3095.2,3095.1,3.67343233]
[1641724124850,0.0022737,3095.2,3095.1,13.42343233]
[1641724126850,0.0022737,3095.2,3095.1,3.67343233]
[1641724127450,0.0022737,3095.2,3095.1,0.465]
[1641724127651,0.0022737,3095.2,3095.1,3.74584387]
[1641724127903,0.0022737,3095.2,3095.1,11.79584387]
[1641724128503,0.0022737,3095.2,3095.1,16.71874387]
[1641724128703,0.0022737,3095.2,3095.1,28.31874387]
[1641724129104,0.0022737,3095.2,3095.1,47.22874387]
[1641724129605,0.0022737,3095.2,3095.1,51.35872724]
[1641724130107,0.0022737,3095.2,3095.1,52.20202724]
[1641724130304,0.0022737,3095.2,3095.1,41.60202724]
[1641724131105,0.0022737,3095.2,3095.1,40.75872724]
[1641724133552,0.0022737,3095.2,3095.1,41.53192724]
[1641724134647,0.0022737,3095.2,3095.1,21.84872724]
[1641724134847,0.0022737,3095.2,3095.1,13.38718337]
[1641724135498,0.0022737,3095.2,3095.1,9.51788337]
[1641724136103,0.0022737,3095.2,3095.1,5.3879]
[1641724137000,0.0022737,3095.2,3095.1,3.9329]
[1641724137706,0.0022737,3095.2,3095.1,6.68663794]
[1641724138704,0.0022737,3095.2,3095.1,6.62163794]
[1641724141547,0.0022737,3095.2,3095.1,13.92163794]
[1641724141747,0.0022737,3095.2,3095.1,17.20406172]
[1641724142804,0.0022737,3095.2,3095.1,8.45111597]
[1641724143413,0.0022737,3095.2,3095.1,11.62885304]
[1641724143608,0.0022737,3095.2,3095.1,8.45111597]
[1641724144012,0.0022737,3095.2,3095.1,11.62082853]
[1641724144309,0.0022737,3095.2,3095.1,8.45111597]
[1641724144509,0.0022737,3095.2,3095.1,16.35111597]
[1641724145412,0.0022737,3095.2,3095.1,8.45111597]
[1641724145609,0.0022737,3095.2,3095.1,11.6257993]
[1641724145810,0.0022737,3095.2,3095.1,10.39632127]
[1641724146111,0.0022737,3095.2,3095.1,11.62576223]
[1641724146556,0.01,3095.5,3095.2,12.15]
[1641724146748,0.01,3095.5,3095.3,3.16719198]
[1641724146948,0.00113685,3095.4,3095.3,3.46719198]
[1641724147347,0.00113685,3095.4,3095.3,4.69655907]
[1641724147549,0.00113685,3095.4,3095.3,0.3]
[1641724147748,0.00113685,3095.4,3095.2,5.54093316]
[1641724147949,0.00113685,3095.4,3095.2,5.84093316]
[1641724148549,0.00113685,3095.4,3095.2,2.41523769]
[1641724148848,0.00113685,3095.4,3095.2,1.1857]
[1641724149052,0.00113685,3095.4,3095.2,1.4857]
[1641724149450,0.00113685,3095.4,3095.2,2.7153233]
[1641724150298,0.00113685,3095.4,3095.2,1.4857]
[1641724150503,0.64508343,3095.3,3095.1,3.98388126]
[1641724150803,0.64508343,3095.3,3095.1,2.75373794]
[1641724151000,0.64508343,3095.3,3095.0,1.23016347]
[1641724151001,19.6,3095.2,3095.0,1.23016347]
[1641724151199,3.06993343,3095.3,3095.0,1.23016347]
[1641724151501,3.06993343,3095.3,3094.6,0.8082638]
[1641724151502,3.87812373,3095.3,3094.6,0.8082638]
[1641724151702,2.4248504,3094.9,3094.6,0.8082638]
[1641724151899,2.4248504,3094.9,3094.7,0.00284212]
[1641724152699,0.8082802,3094.8,3094.7,0.00284212]
[1641724155348,0.8082151,3095.0,3094.7,0.00284212]
[1641724155948,0.8082151,3095.0,3094.7,1.23498472]
[1641724156348,0.8081587,3095.3,3094.8,0.0022737]
[1641724156550,1.61749945,3095.4,3094.8,3.73684566]
[1641724156551,0.00113685,3095.4,3094.8,3.73684566]
[1641724157053,0.00113685,3095.4,3095.0,1.53215209]
[1641724157248,0.00113685,3095.4,3095.1,4.33938568]
[1641724157449,0.00113685,3095.4,3095.1,5.78978568]
[1641724157896,5.32704775,3095.9,3095.3,1.23269353]
[1641724158300,0.00170527,3095.7,3095.2,1.23384475]
[1641724158495,0.00170527,3095.7,3095.3,1.23285737]
[1641724158696,0.00113684,3095.6,3095.3,1.23285737]
[1641724159097,0.00227369,3095.8,3095.3,1.23285737]
[1641724159701,0.00227369,3095.8,3095.4,1.23401676]
[1641724159899,0.81028809,3095.8,3095.5,5.6086]
[1641724160099,6.4607,3095.7,3095.5,5.6086]
[1641724160500,0.00113684,3095.6,3095.5,5.6086]
[1641724162549,0.00113684,3095.6,3095.5,8.36195927]
[1641724162747,0.00113684,3095.6,3095.5,9.59611101]
[1641724163747,0.00113684,3095.6,3095.5,8.36195927]
[1641724163947,0.00113684,3095.6,3095.5,9.49757885]
[1641724164148,0.00113684,3095.6,3095.5,12.62682913]
[1641724165596,0.00113684,3095.6,3095.5,9.49757885]
[1641724166398,0.8082638,3095.7,3095.6,19.6]
[1641724166601,1.94080543,3096.2,3095.7,17.4]
[1641724166798,6.16,3096.5,3095.8,4.05703544]
[1641724167000,0.00284212,3096.1,3096.0,20.79372456]
[1641724167198,0.00284212,3096.1,3096.0,21.60140456]
[1641724167400,0.00284212,3096.1,3096.0,22.60140456]
[1641724167604,0.00284212,3096.1,3096.0,24.84667988]
[1641724167799,0.00284212,3096.1,3096.0,1.64527532]
[1641724168199,6.46264212,3096.1,3095.9,2.75284032]
[1641724168403,6.46264212,3096.1,3096.0,6.8820559]
[1641724168601,6.4598,3096.1,3096.0,6.8820559]
[1641724169055,6.4598,3096.1,3096.0,2.75282236]
[1641724169851,6.4598,3096.1,3096.0,4.697201]
[1641724170052,0.80777,3097.0,3096.2,19.6]
[1641724170263,10.46552886,3097.6,3096.3,3.82920054]
[1641724170264,6.4587,3096.9,3096.3,3.82920054]
[1641724170455,0.00454739,3096.4,3096.3,13.35340054]
[1641724170656,0.00454739,3096.4,3096.3,13.65340054]
[1641724171152,0.00454739,3096.4,3096.3,36.32454167]
[1641724171755,0.00454739,3096.4,3096.3,32.96034113]
[1641724171953,0.02778036,3097.0,3096.9,20.21251677]
[1641724172155,0.02778036,3097.0,3096.9,22.05041677]
[1641724172998,0.02778036,3097.0,3096.9,28.93142055]
[1641724173197,0.03,3097.7,3096.9,28.93142055]
[1641724173599,0.03,3097.7,3097.0,10.24500274]
[1641724173600,0.00682108,3097.6,3097.0,10.24500274]
[1641724173801,0.00682108,3097.6,3097.1,0.465]
[1641724174000,0.00625266,3097.5,3097.1,0.765]
[1641724174200,0.00625266,3097.5,3097.2,8.03757399]
[1641724174402,0.00568423,3097.4,3097.3,0.465]
[1641724174603,0.00568423,3097.4,3097.3,0.765]
[1641724174902,0.00568423,3097.4,3097.3,3.21733795]
[1641724175305,0.00568423,3097.4,3097.3,9.96733795]
[1641724175503,0.00568423,3097.4,3097.3,3.21733795]
[1641724176302,0.00568423,3097.4,3097.3,18.61733795]
[1641724176553,0.00568423,3097.4,3097.3,18.91733795]
[1641724177550,0.00568423,3097.4,3097.3,3.51733795]
[1641724178148,0.00568423,3097.4,3097.3,3.21733795]
[1641724180149,0.00568423,3097.4,3097.3,0.465]
[1641724181197,0.00568423,3097.4,3097.3,3.21739479]
[1641724184247,0.00568423,3097.4,3097.3,8.71739479]
[1641724184545,0.00568423,3097.4,3097.3,3.21739479]
[1641724185146,0.00568423,3097.4,3097.3,10.01739479]
[1641724185447,0.00568423,3097.4,3097.3,3.21739479]
[1641724185945,0.00568423,3097.4,3097.3,0.465]
[1641724187045,0.00568423,3097.4,3097.3,3.21733594]
[1641724187447,0.00568423,3097.4,3097.3,0.4]
[1641724194251,0.00568423,3097.4,3097.3,3.152427]
[1641724194652,0.00568423,3097.4,3097.3,0.4]
[1641724195494,0.00568423,3097.4,3097.3,3.15245533]
[1641724197998,0.00568423,3097.4,3097.3,3.08745533]
[1641724198198,1.13153302,3097.9,3097.4,6.45]
[1641724198398,1.13153302,3097.9,3097.3,3.08745533]
[1641724198603,0.00113685,3097.6,3097.3,2.75245533]
[1641724198801,0.8076683,3097.5,3097.2,5.2853]
[1641724199055,1.80869685,3097.6,3096.9,0.61251677]
[1641724199249,0.80869685,3097.6,3096.9,0.61251677]
[1641724199448,3.40767583,3097.5,3097.0,0.00227369]
[1641724199648,0.00113685,3097.6,3097.0,2.75482994]
[1641724199649,2.4233468,3097.3,3097.0,2.75482994]
[1641724200048,1.6154,3097.2,3097.1,0.00170527]
[1641724201549,1.5494,3097.2,3097.1,0.00170527]
[1641724201949,1.5494,3097.2,3097.0,2.21098668]
[1641724202149,0.80771,3097.1,3097.0,2.21098668]
[1641724204303,5.68468368,3097.1,3097.0,2.21098668]
[1641724204505,14.4,3097.0,3096.9,0.61251677]
[1641724205307,14.4,3097.0,3096.5,1.7234024]
[1641724205308,0.61251677,3096.9,3096.5,0.49421279]
[1641724205607,0.61251677,3096.9,3096.1,6.06787833]
[1641724205608,0.80802,3096.6,3096.4,1.23027901]
[1641724205805,20.10472668,3096.5,3096.4,1.23027901]
[1641724206206,21.10472668,3096.5,3096.1,0.2998]
[1641724206413,1.0,3096.4,3096.1,0.2998]
[1641724206655,0.80804,3096.3,3096.1,0.2998]
[1641724207157,0.80804,3096.3,3096.1,1.53017908]
[1641724207354,0.80804,3096.3,3096.1,0.2998]
[1641724207558,0.80804,3096.3,3096.2,0.00511581]
[1641724207855,0.8079,3096.3,3096.2,13.03619888]
[1641724208064,0.61251677,3096.9,3096.2,13.03619888]
[1641724208258,0.61251677,3096.9,3096.2,14.60881888]
[1641724208458,0.61251677,3096.9,3096.3,0.00454738]
[1641724208655,0.61251677,3096.9,3096.6,1.23089203]
[1641724208858,0.61251677,3096.9,3096.7,0.465]
[1641724209058,0.61251677,3096.9,3096.7,0.46727369]
[1641724209257,0.61251677,3096.9,3096.8,0.00170527]
[1641724209856,0.61251677,3096.9,3096.7,0.00227369]
[1641724210059,2.22806677,3096.9,3096.7,0.00227369]
[1641724210302,3.03582677,3096.9,3096.7,0.00227369]
[1641724211102,1.22788837,3097.0,3096.7,4.55]
[1641724211504,1.22788837,3097.0,3096.8,0.00170527]
[1641724212207,1.22788837,3097.0,3096.8,1.235181]
[1641724212504,0.80764,3097.2,3096.9,0.00113684]
[1641724212902,0.80764,3097.2,3097.0,1.23351289]
[1641724213702,1.6153264,3097.2,3097.1,1.23408256]
[1641724213904,2.4230364,3097.2,3097.1,1.23408256]
[1641724214156,0.80764,3097.2,3097.1,1.23408256]
[1641724214460,0.2578049,3097.2,3097.1,0.8493]
[1641724214858,0.2578049,3097.2,3097.1,20.88335046]
[1641724215057,0.08071,3097.8,3097.3,0.80736]
[1641724215257,0.08071,3097.8,3097.4,0.465]
[1641724215458,0.00341055,3097.7,3097.5,4.15439204]
[1641724215657,0.00341055,3097.7,3097.6,0.465]
[1641724215858,0.80753,3097.7,3097.6,0.465]
[1641724216358,0.08071,3097.8,3097.6,0.765]
[1641724216757,0.08071,3097.8,3097.6,1.6047]
[1641724216961,6.16,3098.6,3097.7,1.23385598]
[1641724216962,0.80737,3098.4,3097.7,1.23385598]
[1641724217157,0.80737,3098.4,3097.8,0.465]
[1641724217360,0.00625266,3098.2,3097.8,0.465]
[1641724217558,0.00625266,3098.2,3097.8,3.65652802]
[1641724217799,0.00568424,3098.1,3097.8,3.65652802]
[1641724218001,0.00568424,3098.1,3097.8,1.69885136]
[1641724218202,1.61475,3098.2,3097.8,1.23385136]
[1641724218203,0.00511582,3098.0,3097.8,1.23385136]
[1641724218400,0.00511582,3098.0,3097.6,1.1397]
[1641724218599,0.00454739,3097.9,3097.6,1.1397]
[1641724219001,0.00397897,3097.8,3097.6,1.1397]
[1641724219400,0.00341055,3097.7,3097.5,5.0643]
[1641724219802,0.00284212,3097.6,3097.5,5.0643]
[1641724220406,0.00284212,3097.6,3097.5,4.9993]
[1641724220804,0.00284212,3097.6,3097.5,15.87377109]
[1641724221003,0.00284212,3097.6,3097.5,8.20543164]
[1641724221202,0.00284212,3097.6,3097.5,4.9993]
[1641724221651,10.75284212,3097.6,3097.5,4.9993]
[1641724221851,0.00284212,3097.6,3097.5,4.9993]
[1641724222052,1.61805212,3097.6,3097.5,4.9993]
[1641724222451,2.42568212,3097.6,3097.2,1.2166]
[1641724222652,0.80762,3097.4,3097.2,1.2166]
[1641724222852,1.6152286,3097.4,3097.2,1.2166]
[1641724223051,0.00113685,3097.3,3097.2,1.2166]
[1641724223851,1.61643685,3097.3,3097.2,2.45034119]
[1641724224052,1.61643685,3097.3,3097.2,1.2166]
[1641724224253,0.00113685,3097.3,3096.9,4.03803684]
[1641724224452,0.8075845,3097.2,3096.9,4.33803684]
[1641724224652,0.8075845,3097.2,3097.0,2.75207901]
[1641724224855,1.6152145,3097.2,3097.0,2.75207901]
[1641724225705,2.4228045,3097.2,3097.0,2.75207901]
[1641724227509,1.6151745,3097.2,3097.0,2.75207901]
[1641724228306,0.80759,3097.2,3097.0,2.75207901]
[1641724228806,0.00113685,3097.3,3097.1,0.465]
[1641724229077,0.00113685,3097.3,3097.1,0.765]
[1641724229264,0.00113685,3097.3,3097.2,17.10188205]
[1641724229463,0.00113685,3097.3,3097.2,17.56688205]
[1641724231063,0.00113685,3097.3,3097.2,7.34475373]
[1641724231463,0.00113685,3097.3,3097.2,3.21688205]
[1641724231765,0.00113685,3097.3,3097.2,13.84851578]
[1641724231963,0.00113685,3097.3,3097.2,10.6112099]
[1641724235109,0.00113685,3097.3,3097.2,4.8612099]
[1641724235710,0.00113685,3097.3,3097.2,3.21688205]
[1641724236555,0.00113685,3097.3,3097.2,12.26688205]
[1641724237152,0.80870685,3097.3,3097.2,12.26688205]
[1641724237552,0.80870685,3097.3,3097.2,1.76288205]
[1641724238452,0.7724903,3097.5,3097.2,1.76288205]
[1641724238653,0.7724903,3097.5,3097.2,2.93069137]
[1641724239154,0.7724903,3097.5,3097.2,1.69780932]
[1641724239354,0.8075074,3097.4,3097.2,1.69780932]
[1641724241705,1.61532,3097.3,3097.2,1.23280932]
[1641724242704,1.61532,3097.3,3097.1,1.23278789]
[1641724242905,3.2306802,3097.3,3097.1,1.23278789]
[1641724243103,3.2306802,3097.3,3096.8,1.64371718]
[1641724243104,4.0383593,3097.3,3097.0,1.23281317]
[1641724243307,0.80765,3097.2,3097.0,1.23281317]
[1641724243504,0.80765,3097.2,3097.1,0.00113685]
[1641724244154,2.4229431,3097.2,3097.1,0.00113685]
[1641724244556,2.4229431,3097.2,3097.1,1.23408091]
[1641724245454,0.80765,3097.2,3097.1,8.58408091]
[1641724245656,0.80765,3097.2,3097.1,7.35113685]
[1641724246355,0.80751,3097.5,3097.1,10.62906891]
[1641724246656,0.80751,3097.5,3097.1,0.00113685]
[1641724246857,2.42285,3097.4,3097.1,0.00113685]
[1641724247058,2.42285,3097.4,3097.3,1.23297566]
[1641724247657,2.42285,3097.4,3097.1,1.23408704]
[1641724247907,1.6153304,3097.3,3097.1,0.00113685]
[1641724248306,0.8076604,3097.3,3097.1,0.00113685]
[1641724248509,0.8076604,3097.3,3097.2,1.23304451]
[1641724249709,0.8076604,3097.3,3097.1,1.64505122]
[1641724249909,1.6152964,3097.3,3097.1,1.64505122]
[1641724250115,0.80766,3097.2,3097.1,1.64505122]
[1641724250308,0.80766,3097.2,3097.1,6.39505122]
[1641724250509,0.80766,3097.2,3097.1,4.75113685]
[1641724251116,0.807636,3097.3,3097.1,4.75113685]
[1641724252156,0.807636,3097.3,3097.1,6.39728805]
[1641724253058,0.807636,3097.3,3097.1,6.38928805]
[1641724253257,0.807636,3097.3,3097.1,1.6461512]
[1641724254058,0.807636,3097.3,3097.2,1.64657297]
[1641724254458,0.80877285,3097.3,3097.2,1.64657297]
[1641724255904,0.80877285,3097.3,3097.0,2.76985749]
[1641724256104,0.80758,3097.2,3097.0,2.76985749]
[1641724257306,1.61516,3097.2,3097.0,2.76985749]
[1641724257507,1.61516,3097.2,3097.0,1.64764271]
[1641724257907,0.8078234,3097.1,3096.9,1.64800216]
[1641724258108,3.2310634,3097.1,3096.9,1.64800216]
[1641724258508,0.80775,3097.0,3096.9,2.88409277]
[1641724258707,0.80775,3097.0,3096.9,1.23609061]
[1641724258911,0.80775,3097.0,3096.9,1.23722745]
[1641724259153,0.80775,3097.0,3096.9,4.40140914]
[1641724259553,0.80775,3097.0,3096.9,0.00113684]
[1641724262356,0.80775,3097.0,3096.9,1.64940645]
[1641724262655,0.80775,3097.0,3096.9,0.00113684]
[1641724262903,0.807755,3096.9,3096.7,2.4721659]
[1641724263102,0.80776,3096.8,3096.6,4.15770944]
[1641724263503,0.80776,3096.8,3096.7,0.00113685]
[1641724263703,0.80776,3096.8,3096.6,4.09384629]
[1641724264404,1.6155235,3096.8,3096.6,4.09384629]
[1641724265003,3.2310535,3096.8,3096.6,4.09384629]
[1641724265503,3.2310535,3096.8,3096.6,4.91721686]
[1641724266403,1.6155235,3096.8,3096.6,4.91721686]
[1641724266659,4.038795,3096.9,3096.6,4.91721686]
[1641724267059,4.038795,3096.9,3096.8,2.47187385]
[1641724267257,3.231025,3096.9,3096.6,4.093654]
[1641724267457,1.6155145,3096.8,3096.6,4.093654]
[1641724268761,2.4232745,3096.8,3096.6,4.093654]
[1641724271210,2.4232745,3096.8,3096.6,2.639654]
[1641724271408,2.4232745,3096.8,3096.6,2.94888975]
[1641724272009,2.4232745,3096.8,3096.6,2.88388975]
[1641724272710,13.12339313,3096.7,3096.6,2.88388975]
[1641724272911,13.12339313,3096.7,3096.3,3.29555082]
[1641724273111,0.80799,3096.4,3096.1,3.59480255]
[1641724273311,7.55110516,3096.2,3096.1,3.59480255]
[1641724273710,1.05110516,3096.2,3096.1,3.59821309]
[1641724273913,8.95,3096.1,3095.8,1.64443023]
[1641724274159,10.05814,3095.9,3095.8,1.64443023]
[1641724274365,4.16960752,3095.9,3095.8,1.64443023]
[1641724274565,0.80814,3095.9,3095.8,1.64443023]
[1641724276761,0.80614,3095.9,3095.8,1.64443023]
[1641724277362,0.80614,3095.9,3095.8,1.59443023]
[1641724278411,3.19520837,3096.0,3095.8,1.59443023]
[1641724278812,3.19520837,3096.0,3095.9,0.00113685]
[1641724279417,5.61933687,3096.0,3095.9,0.00113685]
[1641724279616,5.61933687,3096.0,3095.9,1.64475228]
[1641724280014,5.61933687,3096.0,3095.9,0.00113685]
[1641724281862,4.81131687,3096.0,3095.8,1.78420449]
[1641724283263,4.81131687,3096.0,3095.9,2.68780759]
[1641724286611,4.48631687,3096.0,3095.9,2.68780759]
[1641724288810,4.15390764,3096.0,3095.9,2.68780759]
[1641724291061,4.15390764,3096.0,3095.9,1.23280759]
[1641724292062,4.15390764,3096.0,3095.9,1.16780759]
[1641724292262,50.57269638,3096.0,3095.9,1.16780759]
[1641724293412,56.88196711,3096.0,3095.9,2.14730517]
[1641724293612,10.95,3095.9,3095.8,0.14056708]
[1641724293812,10.95,3095.9,3095.4,1.64217181]
[1641724293813,12.15,3095.8,3095.4,1.64217181]
[1641724294017,9.54490776,3095.5,3095.4,1.64217181]
[1641724294214,5.51623084,3095.5,3095.4,1.64217181]
[1641724294417,2.20321776,3095.5,3095.3,1.64226789]
[1641724294714,0.64258196,3095.4,3095.3,1.64226789]
[1641724294915,0.64258196,3095.4,3095.1,1.64164346]
[1641724295114,0.80825,3095.3,3095.1,1.64164346]
[1641724295319,22.86212973,3095.2,3095.1,1.64164346]
[1641724295515,22.86212973,3095.2,3094.9,2.46246519]
[1641724295516,10.75,3095.1,3094.9,2.46246519]
[1641724295717,19.41,3095.0,3094.9,2.46246519]
[1641724295915,6.46,3095.0,3094.9,2.46246519]
[1641724296117,0.80846,3094.9,3094.4,2.46321116]
[1641724296316,1.1158471,3094.6,3094.4,2.46321116]